[Event "EIRCC 2019"]
[Site "Tallinn"]
[Date "2019.12.06"]
[Round "8.9"]
[White "Lysyj, Igor"]
[Black "Vlassow, Valentin"]
[Result "1-0"]
[ECO "D02"]
[WhiteElo "2599"]
[BlackElo "2394"]
[Annotator "ChessBase"]
[PlyCount "61"]
[EventDate "2019.12.05"]
[EventType "swiss"]
[EventCountry "EST"]
[SourceTitle "playchess.com"]
[Source "ChessBase"]
[SourceQuality "1"]
[TimeControl "900+10"]

1. d4 {[%emt 0:00:00]} d5 {[%emt 0:00:00]} 2. Nf3 {[%emt 0:00:00]} Bf5 {[%emt 0:00:17]} 3. c4 {[%emt 0:00:00]} e6 {[%emt 0:00:01]} 4. cxd5 {[%emt 0:00:00]} exd5 {[%emt 0:00:01]} 5. Qb3 {[%emt 0:00:00]} Nc6 {[%emt 0:00:02]} 6. Nc3 {[%emt 0:00:01]} Nf6 {[%emt 0:00:02]} 7. Bg5 {[%emt 0:00:04]} Be7 {[%emt 0:04:13]} 8. Bxf6 {[%emt 0:00:02]} Bxf6 {[%emt 0:00:01]} 9. e3 {[%emt 0:00:02]} Ne7 {[%emt 0:02:19]} 10. Qxb7 {[%emt 0:00:02]} O-O {[%emt 0:00:02]} 11. Qa6 {[%emt 0:02:38]} Rb8 {[%emt 0:00:58]} 12. Na4 {[%emt 0:00:34]} c5 {[%emt 0:00:48]} 13. Nxc5 {[%emt 0:00:38]} Rxb2 {[%emt 0:00:09]} 14. Bd3 {[%emt 0:01:50]} Bg4 {[%emt 0:03:00]} 15. O-O {[%emt 0:00:28]} Bxf3 {[%emt 0:00:03]} 16. gxf3 {[%emt 0:00:01]} Ng6 {[%emt 0:01:55]} 17. Bxg6 {[%emt 0:00:41]} hxg6 {[%emt 0:00:04]} 18. Rfb1 {[%emt 0:04:37]} Rc2 {[%emt 0:00:02]} 19. Qd3 {[%emt 0:01:58]} Rxc5 {[%emt 0:00:27]} 20. dxc5 {[%emt 0:00:01]} Bxa1 {[%emt 0:00:02]} 21. Rxa1 {[%emt 0:00:01]} Qg5+ {[%emt 0:01:49]} 22. Kf1 {[%emt 0:01:01]} Rd8 {[%emt 0:01:23]} 23. Qd4 {[%emt 0:02:27]} Qh5 {[%emt 0:00:22]} 24. Kg2 {[%emt 0:00:02]} Qg5+ {[%emt 0:00:12]} 25. Qg4 {[%emt 0:00:01]} Qe5 {[%emt 0:00:09]} 26. Rd1 {[%emt 0:00:05]} Qb2 {[%emt 0:00:14]} 27. Qg5 {[%emt 0:00:39]} f6 {[%emt 0:00:26]} 28. Qxg6 {[%emt 0:00:28]} Qxa2 {[%emt 0:00:02]} 29. Qf5 {[%emt 0:00:28]} Qc4 {[%emt 0:00:17]} 30. Qe6+ {[%emt 0:00:05]} Kh8 {[%emt 0:00:01]} 31. Rd4 {[%emt 0:00:08]} 1-0

[Event "EIRCC 2019"]
[Site "Tallinn"]
[Date "2019.12.06"]
[Round "8.10"]
[White "Kozak, Adam"]
[Black "Postny, Evgeny"]
[Result "1-0"]
[ECO "A06"]
[WhiteElo "2240"]
[BlackElo "2598"]
[Annotator "ChessBase"]
[PlyCount "41"]
[EventDate "2019.12.05"]
[EventType "swiss"]
[EventCountry "EST"]
[SourceTitle "playchess.com"]
[Source "ChessBase"]
[SourceQuality "1"]
[TimeControl "900+10"]

1. Nf3 {[%emt 0:00:00]} d5 {[%emt 0:00:11]} 2. g3 {[%emt 0:00:00]} c6 {[%emt 0:00:06]} 3. Bg2 {[%emt 0:00:03]} Bg4 {[%emt 0:00:01]} 4. O-O {[%emt 0:00:10]} e6 {[%emt 0:00:03]} 5. h3 {[%emt 0:00:03]} Bxf3 {[%emt 0:00:06]} 6. Bxf3 {[%emt 0:00:04]} Nf6 {[%emt 0:00:05]} 7. d4 {[%emt 0:00:45]} Nbd7 {[%emt 0:00:15]} 8. Nd2 {[%emt 0:00:11]} e5 {[%emt 0:00:52]} 9. e4 {[%emt 0:03:53]} dxe4 {[%emt 0:00:25]} 10. dxe5 {[%emt 0:00:03]} exf3 {[%emt 0:01:47]} 11. exf6 {[%emt 0:00:06]} Qxf6 {[%emt 0:00:22]} 12. Re1+ {[%emt 0:01:12]} Be7 {[%emt 0:05:36]} 13. Nxf3 {[%emt 0:00:03]} h6 {[%emt 0:02:21]} 14. Be3 {[%emt 0:02:51]} c5 {[%emt 0:01:16]} 15. Bd2 {[%emt 0:01:53]} Qc6 {[%emt 0:00:26]} 16. Bc3 {[%emt 0:00:51]} f6 {[%emt 0:00:28]} 17. Nh4 {[%emt 0:00:46]} Kd8 {[%emt 0:00:46]} 18. Ng6 {[%emt 0:01:59]} Re8 {[%emt 0:00:02]} 19. Qe2 {[%emt 0:00:02]} Ne5 {[%emt 0:00:46]} 20. Nxe5 {[%emt 0:00:40]} fxe5 {[%emt 0:00:03]} 21. Qxe5 {[%emt 0:00:04]} 1-0

[Event "EIRCC 2019"]
[Site "Tallinn"]
[Date "2019.12.06"]
[Round "8.11"]
[White "Zabolotnov, Evgeny"]
[Black "Saric, Ante"]
[Result "0-1"]
[ECO "E16"]
[WhiteElo "2021"]
[BlackElo "2538"]
[Annotator "ChessBase"]
[PlyCount "104"]
[EventDate "2019.12.05"]
[EventType "swiss"]
[EventCountry "EST"]
[SourceTitle "playchess.com"]
[Source "ChessBase"]
[SourceQuality "1"]
[TimeControl "900+10"]

1. d4 {[%emt 0:00:00]} Nf6 {[%emt 0:00:00]} 2. c4 {[%emt 0:00:00]} e6 {[%emt 0:00:00]} 3. Nf3 {[%emt 0:00:00]} b6 {[%emt 0:00:00]} 4. g3 {[%emt 0:00:00]} Bb7 {[%emt 0:00:00]} 5. Bg2 {[%emt 0:00:00]} Bb4+ {[%emt 0:00:00]} 6. Bd2 {[%emt 0:00:00]} Be7 {[%emt 0:00:00]} 7. O-O {[%emt 0:00:02]} c6 {[%emt 0:00:00]} 8. Nc3 {[%emt 0:01:41]} d5 {[%emt 0:00:00]} 9. Ne5 {[%emt 0:01:25]} O-O {[%emt 0:00:06]} 10. e4 {[%emt 0:00:51]} dxe4 {[%emt 0:01:51]} 11. Be3 {[%emt 0:00:30]} c5 {[%emt 0:00:12]} 12. d5 {[%emt 0:01:00]} Bd6 {[%emt 0:01:05]} 13. Ng4 {[%emt 0:01:58]} Nxg4 {[%emt 0:00:05]} 14. Qxg4 {[%emt 0:00:01]} exd5 {[%emt 0:00:32]} 15. Nxd5 {[%emt 0:01:19]} Bxd5 {[%emt 0:00:08]} 16. cxd5 {[%emt 0:00:01]} f5 {[%emt 0:00:03]} 17. Qe2 {[%emt 0:00:44]} Nd7 {[%emt 0:00:02]} 18. f3 {[%emt 0:00:20]} exf3 {[%emt 0:00:11]} 19. Qxf3 {[%emt 0:00:07]} Qf6 {[%emt 0:00:35]} 20. Bf4 {[%emt 0:00:59]} Rae8 {[%emt 0:00:39]} 21. Bxd6 {[%emt 0:00:25]} Qxd6 {[%emt 0:00:01]} 22. Rae1 {[%emt 0:00:07]} g6 {[%emt 0:00:43]} 23. Qa3 {[%emt 0:00:43]} a5 {[%emt 0:03:33]} 24. Qa4 {[%emt 0:01:36]} Ne5 {[%emt 0:00:04]} 25. Re2 {[%emt 0:00:18]} Re7 {[%emt 0:00:05]} 26. Rfe1 {[%emt 0:00:01]} Rfe8 {[%emt 0:00:25]} 27. Qf4 {[%emt 0:00:55]} Kg7 {[%emt 0:00:35]} 28. h3 {[%emt 0:00:23]} Qf6 {[%emt 0:00:17]} 29. Kh1 {[%emt 0:02:11]} h5 {[%emt 0:00:55]} 30. Qd2 {[%emt 0:01:19]} Nf7 {[%emt 0:00:28]} 31. Rxe7 {[%emt 0:00:48]} Rxe7 {[%emt 0:00:01]} 32. Rxe7 {[%emt 0:00:01]} Qxe7 {[%emt 0:00:02]} 33. Kh2 {[%emt 0:00:10]} h4 {[%emt 0:03:09]} 34. gxh4 {[%emt 0:00:11]} Qxh4 {[%emt 0:00:06]} 35. Qc3+ {[%emt 0:00:09]} Qf6 {[%emt 0:00:15]} 36. Qb3 {[%emt 0:00:09]} Qe5+ {[%emt 0:00:33]} 37. Kh1 {[%emt 0:00:06]} Qe1+ {[%emt 0:00:15]} 38. Kh2 {[%emt 0:00:01]} Qb4 {[%emt 0:00:18]} 39. Qc2 {[%emt 0:00:07]} Qf4+ {[%emt 0:00:20]} 40. Kh1 {[%emt 0:00:02]} Qe3 {[%emt 0:00:29]} 41. a3 {[%emt 0:00:19]} Nd6 {[%emt 0:00:25]} 42. Kh2 {[%emt 0:00:38]} Kf6 {[%emt 0:00:10]} 43. Qa4 {[%emt 0:00:07]} Qe5+ {[%emt 0:00:36]} 44. Kh1 {[%emt 0:00:03]} Qe1+ {[%emt 0:00:15]} 45. Kh2 {[%emt 0:00:01]} b5 {[%emt 0:00:06]} 46. Qc2 {[%emt 0:00:06]} Qe5+ {[%emt 0:00:11]} 47. Kh1 {[%emt 0:00:01]} Ne4 {[%emt 0:00:10]} 48. a4 {[%emt 0:00:43]} b4 {[%emt 0:00:21]} 49. b3 {[%emt 0:00:18]} Qxd5 {[%emt 0:00:12]} 50. Qc1 {[%emt 0:00:09]} Qd1+ {[%emt 0:00:39]} 51. Qxd1 {[%emt 0:00:02]} Nf2+ {[%emt 0:00:01]} 52. Kg1 {[%emt 0:00:01]} Nxd1 {[%emt 0:00:02]} 0-1

[Event "EIRCC 2019"]
[Site "Tallinn"]
[Date "2019.12.06"]
[Round "8.12"]
[White "Belyakov, Bogdan"]
[Black "Kourousis, Epaminondas"]
[Result "1/2-1/2"]
[ECO "B40"]
[WhiteElo "2520"]
[BlackElo "2392"]
[Annotator "ChessBase"]
[PlyCount "118"]
[EventDate "2019.12.05"]
[EventType "swiss"]
[EventCountry "EST"]
[SourceTitle "playchess.com"]
[Source "ChessBase"]
[SourceQuality "1"]
[TimeControl "900+10"]

1. e4 {[%emt 0:00:00]} c5 {[%emt 0:00:00]} 2. Nf3 {[%emt 0:00:00]} e6 {[%emt 0:00:00]} 3. c3 {[%emt 0:00:00]} Nf6 {[%emt 0:00:00]} 4. e5 {[%emt 0:00:01]} Nd5 {[%emt 0:00:00]} 5. d4 {[%emt 0:00:32]} cxd4 {[%emt 0:00:03]} 6. cxd4 {[%emt 0:00:02]} b6 {[%emt 0:00:01]} 7. Bc4 {[%emt 0:00:24]} Ba6 {[%emt 0:00:07]} 8. b3 {[%emt 0:00:55]} Be7 {[%emt 0:03:44]} 9. O-O {[%emt 0:00:14]} O-O {[%emt 0:00:51]} 10. Qe2 {[%emt 0:01:37]} Nc7 {[%emt 0:02:02]} 11. Nc3 {[%emt 0:00:59]} d5 {[%emt 0:00:17]} 12. exd6 Qxd6 {[%emt 0:00:23]} 13. Ne4 {[%emt 0:00:57]} Qd8 {[%emt 0:03:07]} 14. Bf4 {[%emt 0:01:01]} Bb7 {[%emt 0:01:34]} 15. Rac1 {[%emt 0:03:47]} Nd5 {[%emt 0:00:19]} 16. Bd2 {[%emt 0:00:02]} Nd7 {[%emt 0:00:15]} 17. Ne5 {[%emt 0:01:12]} Rc8 {[%emt 0:00:52]} 18. Ba6 {[%emt 0:00:37]} Bxa6 {[%emt 0:00:10]} 19. Qxa6 {[%emt 0:00:02]} Nxe5 {[%emt 0:00:08]} 20. dxe5 {[%emt 0:00:10]} Qd7 {[%emt 0:00:10]} 21. Qd3 {[%emt 0:01:08]} Rxc1 {[%emt 0:00:50]} 22. Rxc1 {[%emt 0:00:56]} Rc8 {[%emt 0:00:02]} 23. Rc4 {[%emt 0:00:50]} h6 {[%emt 0:00:22]} 24. h3 {[%emt 0:00:38]} Qb7 {[%emt 0:00:07]} 25. Qg3 {[%emt 0:00:29]} Kf8 {[%emt 0:00:26]} 26. Nd6 {[%emt 0:00:17]} Bxd6 {[%emt 0:00:07]} 27. exd6 {[%emt 0:00:02]} Rxc4 {[%emt 0:00:21]} 28. bxc4 {[%emt 0:00:02]} Nf6 {[%emt 0:00:04]} 29. Bc3 {[%emt 0:00:16]} Ne8 {[%emt 0:00:40]} 30. Bb4 {[%emt 0:00:43]} Kg8 {[%emt 0:00:43]} 31. Qe5 {[%emt 0:01:07]} Qc6 {[%emt 0:00:31]} 32. Qd4 {[%emt 0:00:12]} Nf6 {[%emt 0:00:51]} 33. Bc3 {[%emt 0:00:03]} Kf8 {[%emt 0:00:37]} 34. a3 {[%emt 0:00:33]} Qd7 {[%emt 0:00:39]} 35. Qd3 {[%emt 0:00:29]} Ne8 {[%emt 0:00:13]} 36. Bb4 {[%emt 0:00:29]} a5 {[%emt 0:00:07]} 37. Bc3 {[%emt 0:00:02]} Qxd6 {[%emt 0:00:01]} 38. Qe3 {[%emt 0:00:03]} f6 {[%emt 0:00:22]} 39. Bd4 {[%emt 0:00:02]} Qc6 {[%emt 0:00:12]} 40. Bxb6 {[%emt 0:00:03]} a4 {[%emt 0:00:09]} 41. c5 {[%emt 0:00:03]} Kf7 {[%emt 0:00:02]} 42. Qd4 {[%emt 0:00:05]} f5 {[%emt 0:00:18]} 43. Bd8 {[%emt 0:00:08]} Qd5 {[%emt 0:00:08]} 44. Qxd5 {[%emt 0:00:13]} exd5 {[%emt 0:00:01]} 45. Kf1 {[%emt 0:00:08]} Ke6 {[%emt 0:00:03]} 46. Ke2 {[%emt 0:00:09]} Kd7 {[%emt 0:00:04]} 47. Ba5 {[%emt 0:00:02]} Kc6 {[%emt 0:00:03]} 48. Bb4 {[%emt 0:00:03]} Nc7 {[%emt 0:00:03]} 49. g4 {[%emt 0:00:14]} g6 {[%emt 0:00:33]} 50. gxf5 {[%emt 0:00:14]} gxf5 {[%emt 0:00:01]} 51. Kf3 {[%emt 0:00:01]} Ne6 {[%emt 0:00:01]} 52. Ke3 {[%emt 0:00:14]} Nxc5 {[%emt 0:00:09]} 53. Kd4 {[%emt 0:00:02]} Ne4 {[%emt 0:00:23]} 54. f4 {[%emt 0:00:07]} Nf2 {[%emt 0:00:07]} 55. h4 {[%emt 0:00:02]} h5 {[%emt 0:00:12]} 56. Be1 {[%emt 0:00:23]} Ng4 {[%emt 0:00:28]} 57. Bb4 {[%emt 0:00:02]} Nf2 {[%emt 0:00:03]} 58. Be1 {[%emt 0:00:00]} Ng4 {[%emt 0:00:02]} 59. Bb4 {[%emt 0:00:01]} Nf2 {[%emt 0:00:30] Ke4} 1/2-1/2

[Event "EIRCC 2019"]
[Site "Tallinn"]
[Date "2019.12.06"]
[Round "8.13"]
[White "Nasibullin, Iskander"]
[Black "Potapov, Pavel"]
[Result "0-1"]
[ECO "B32"]
[WhiteElo "2270"]
[BlackElo "2482"]
[Annotator "ChessBase"]
[PlyCount "118"]
[EventDate "2019.12.05"]
[EventType "swiss"]
[EventCountry "EST"]
[SourceTitle "playchess.com"]
[Source "ChessBase"]
[SourceQuality "1"]
[TimeControl "900+10"]

1. e4 {[%emt 0:01:06]} c5 {[%emt 0:00:00]} 2. Nf3 {[%emt 0:00:02]} Nc6 {[%emt 0:00:00]} 3. d4 {[%emt 0:00:02]} cxd4 {[%emt 0:00:00]} 4. Nxd4 {[%emt 0:00:02]} e5 {[%emt 0:00:00]} 5. Nb5 {[%emt 0:00:05]} d6 {[%emt 0:00:02]} 6. N1c3 {[%emt 0:00:09]} a6 {[%emt 0:00:01]} 7. Na3 {[%emt 0:00:02]} Be7 {[%emt 0:00:04]} 8. Nd5 {[%emt 0:00:16]} Nf6 {[%emt 0:00:02]} 9. Be3 {[%emt 0:00:15]} Nxd5 {[%emt 0:00:07]} 10. exd5 {[%emt 0:00:09]} Nb8 {[%emt 0:00:02]} 11. Nc4 {[%emt 0:00:20]} Nd7 {[%emt 0:00:02]} 12. a4 {[%emt 0:00:03]} O-O {[%emt 0:00:07]} 13. a5 {[%emt 0:00:35]} f5 {[%emt 0:00:09]} 14. f4 {[%emt 0:01:21]} exf4 {[%emt 0:03:22]} 15. Bxf4 {[%emt 0:00:26]} Nc5 {[%emt 0:00:04]} 16. Nb6 {[%emt 0:01:24]} Rb8 {[%emt 0:00:14]} 17. Be2 {[%emt 0:00:18]} Bg5 {[%emt 0:02:57]} 18. O-O {[%emt 0:01:28]} Bxf4 {[%emt 0:00:19]} 19. Rxf4 {[%emt 0:00:02]} Qe7 {[%emt 0:00:21]} 20. Qf1 {[%emt 0:01:51]} g6 {[%emt 0:00:54]} 21. Bd3 {[%emt 0:01:20]} Re8 {[%emt 0:01:10]} 22. h3 {[%emt 0:01:01]} Bd7 {[%emt 0:01:37]} 23. Rf3 {[%emt 0:02:00]} Qg7 {[%emt 0:01:01]} 24. b3 {[%emt 0:00:45]} Re7 {[%emt 0:00:33]} 25. Rd1 {[%emt 0:00:55]} Rbe8 {[%emt 0:00:14]} 26. Bc4 {[%emt 0:00:24]} Qh6 {[%emt 0:01:46]} 27. Qf2 {[%emt 0:01:06]} Ne4 {[%emt 0:00:49]} 28. Qd4 {[%emt 0:00:36]} Qg5 {[%emt 0:00:24]} 29. Bf1 {[%emt 0:00:53]} f4 {[%emt 0:01:00]} 30. Nxd7 {[%emt 0:00:40]} Rxd7 {[%emt 0:00:01]} 31. c4 {[%emt 0:00:12]} Rf7 {[%emt 0:00:24]} 32. Re1 {[%emt 0:00:14]} Rfe7 {[%emt 0:00:02]} 33. Rd1 {[%emt 0:00:07]} Nc5 {[%emt 0:01:06]} 34. b4 {[%emt 0:00:06]} Re4 {[%emt 0:00:01]} 35. Qb2 {[%emt 0:00:15]} Nd7 {[%emt 0:00:08]} 36. Qc2 {[%emt 0:00:08]} Re3 {[%emt 0:00:19]} 37. Rxe3 {[%emt 0:00:15]} fxe3 {[%emt 0:00:22]} 38. Be2 {[%emt 0:00:00]} Rf8 {[%emt 0:00:16]} 39. Rf1 {[%emt 0:00:02]} Rxf1+ {[%emt 0:00:08]} 40. Bxf1 {[%emt 0:00:04]} Qf4 {[%emt 0:00:12]} 41. Qd3 {[%emt 0:00:35]} Ne5 {[%emt 0:00:35]} 42. Qe2 {[%emt 0:00:01]} Kf7 {[%emt 0:00:17]} 43. b5 {[%emt 0:00:08]} Qd4 {[%emt 0:00:15]} 44. Kh2 {[%emt 0:00:21]} Ke7 {[%emt 0:00:09]} 45. bxa6 {[%emt 0:00:14]} bxa6 {[%emt 0:00:01]} 46. g3 {[%emt 0:00:03]} Nd7 {[%emt 0:00:26]} 47. Qg4 {[%emt 0:00:14]} Qxg4 {[%emt 0:00:10]} 48. hxg4 {[%emt 0:00:01]} Kf6 {[%emt 0:00:03]} 49. Kg2 {[%emt 0:00:18]} Ke5 {[%emt 0:00:01]} 50. Kf3 {[%emt 0:00:01]} Kd4 {[%emt 0:00:01]} 51. Kf4 {[%emt 0:00:17]} h6 {[%emt 0:00:09]} 52. g5 {[%emt 0:00:07]} h5 {[%emt 0:00:09]} 53. Be2 {[%emt 0:00:01]} Nc5 {[%emt 0:00:16]} 54. Bf1 {[%emt 0:00:26]} Ne4 {[%emt 0:00:11]} 55. Be2 {[%emt 0:00:08]} Nc3 {[%emt 0:00:08]} 56. Bxh5 {[%emt 0:00:13]} gxh5 {[%emt 0:00:02]} 57. g6 {[%emt 0:00:01]} e2 {[%emt 0:00:10]} 58. g7 {[%emt 0:00:09]} e1=Q {[%emt 0:00:02]} 59. g8=Q {[%emt 0:00:03]} Qf2+ {[%emt 0:00:04] Ke5+ Kxe5} 0-1

[Event "EIRCC 2019"]
[Site "Tallinn"]
[Date "2019.12.06"]
[Round "8.14"]
[White "Ionov, Sergey"]
[Black "Nguyen, Thai Dai Van"]
[Result "0-1"]
[ECO "B22"]
[WhiteElo "2480"]
[BlackElo "2364"]
[Annotator "ChessBase"]
[PlyCount "50"]
[EventDate "2019.12.05"]
[EventType "swiss"]
[EventCountry "EST"]
[SourceTitle "playchess.com"]
[Source "ChessBase"]
[SourceQuality "1"]
[TimeControl "900+10"]

1. e4 {[%emt 0:00:00]} c5 {[%emt 0:00:00]} 2. c3 {[%emt 0:00:28]} Nf6 {[%emt 0:00:06]} 3. e5 {[%emt 0:00:02]} Nd5 {[%emt 0:00:02]} 4. d4 {[%emt 0:01:09]} cxd4 {[%emt 0:00:02]} 5. Qxd4 {[%emt 0:00:01]} e6 {[%emt 0:00:33]} 6. Nf3 {[%emt 0:00:02]} Nc6 {[%emt 0:00:02]} 7. Qe4 {[%emt 0:00:01]} f5 {[%emt 0:00:41]} 8. Qe2 {[%emt 0:00:02]} b6 {[%emt 0:02:45]} 9. g3 {[%emt 0:01:11]} a5 {[%emt 0:01:25]} 10. Bg2 {[%emt 0:03:41]} Ba6 {[%emt 0:00:05]} 11. c4 {[%emt 0:00:01]} Bb4+ {[%emt 0:00:01]} 12. Nbd2 {[%emt 0:02:48]} O-O {[%emt 0:01:50]} 13. O-O {[%emt 0:00:02]} a4 {[%emt 0:02:08]} 14. Qd1 {[%emt 0:03:45]} Nde7 {[%emt 0:00:28]} 15. Re1 {[%emt 0:00:10]} b5 {[%emt 0:01:08]} 16. cxb5 {[%emt 0:01:06]} Bxb5 {[%emt 0:00:02]} 17. a3 {[%emt 0:00:26]} Ba5 {[%emt 0:00:13]} 18. b4 {[%emt 0:00:17]} axb3 {[%emt 0:00:10]} 19. Qxb3 {[%emt 0:00:02]} Ba6 {[%emt 0:01:04]} 20. Bf1 {[%emt 0:00:59]} Qc7 {[%emt 0:01:03]} 21. Bxa6 {[%emt 0:00:28]} Rxa6 {[%emt 0:00:01]} 22. Re2 {[%emt 0:00:49]} Rb8 {[%emt 0:01:26]} 23. Qd3 {[%emt 0:00:27]} Rab6 {[%emt 0:00:01]} 24. Nc4 {[%emt 0:00:34]} Rb3 {[%emt 0:00:04]} 25. Qd6 {[%emt 0:00:21]} Rxf3 {[%emt 0:00:19]} 0-1

[Event "EIRCC 2019"]
[Site "Tallinn"]
[Date "2019.12.06"]
[Round "8.15"]
[White "Usmanov, Vasily"]
[Black "Seeman, Tarvo"]
[Result "1-0"]
[ECO "A45"]
[WhiteElo "2428"]
[BlackElo "2325"]
[Annotator "NA"]
[PlyCount "91"]
[EventDate "2019.12.05"]
[EventType "swiss"]
[EventCountry "EST"]
[SourceTitle "playchess.com"]
[Source "ChessBase"]
[SourceQuality "1"]
[TimeControl "900+10"]

1. d4 {[%emt 0:00:00]} Nf6 {[%emt 0:00:00]} 2. Bg5 {[%emt 0:00:00]} Ne4 {[%emt 0:00:49]} 3. Bf4 {[%emt 0:00:05]} d5 {[%emt 0:01:12]} 4. e3 {[%emt 0:00:06]} Bf5 {[%emt 0:00:18]} 5. g4 {[%emt 0:01:50]} Bg6 {[%emt 0:00:03]} 6. h4 {[%emt 0:00:02]} h6 {[%emt 0:00:20]} 7. Bd3 {[%emt 0:00:05]} e6 {[%emt 0:01:13]} 8. f3 {[%emt 0:00:17]} Nf6 {[%emt 0:00:12]} 9. Bxg6 {[%emt 0:00:03]} fxg6 {[%emt 0:00:02]} 10. Qd3 {[%emt 0:00:05]} Kf7 {[%emt 0:00:02]} 11. Ne2 {[%emt 0:00:37]} Nbd7 {[%emt 0:00:24]} 12. g5 {[%emt 0:01:35]} hxg5 {[%emt 0:00:59]} 13. Bxg5 {[%emt 0:00:01]} e5 {[%emt 0:00:27]} 14. Nbc3 {[%emt 0:00:03]} exd4 {[%emt 0:03:09]} 15. exd4 {[%emt 0:00:14]} Qe8 {[%emt 0:00:51]} 16. O-O-O {[%emt 0:00:08]} Qe6 {[%emt 0:00:37]} 17. Nf4 {[%emt 0:02:11]} Qf5 {[%emt 0:00:02]} 18. Qxf5 {[%emt 0:01:07]} gxf5 {[%emt 0:00:02]} 19. Ncxd5 {[%emt 0:00:02]} Nxd5 {[%emt 0:01:15]} 20. Nxd5 {[%emt 0:00:01]} Bd6 {[%emt 0:00:02]} 21. Ne3 {[%emt 0:00:20]} g6 {[%emt 0:00:18]} 22. Nc4 {[%emt 0:00:42]} Rae8 {[%emt 0:00:27]} 23. Nxd6+ {[%emt 0:00:22]} cxd6 {[%emt 0:00:01]} 24. Kd2 {[%emt 0:00:04]} d5 {[%emt 0:00:49]} 25. a4 {[%emt 0:00:18]} Nf8 {[%emt 0:01:02]} 26. Bf4 {[%emt 0:00:44]} Rh5 {[%emt 0:00:55]} 27. Rdg1 {[%emt 0:00:57]} Ne6 {[%emt 0:00:34]} 28. Be5 {[%emt 0:00:02]} Nd8 {[%emt 0:00:02]} 29. Rg5 {[%emt 0:00:45]} Ne6 {[%emt 0:00:26]} 30. Rxh5 {[%emt 0:01:17]} gxh5 {[%emt 0:00:02]} 31. Rg1 {[%emt 0:00:10]} Rg8 {[%emt 0:00:37]} 32. Rxg8 {[%emt 0:00:06]} Kxg8 {[%emt 0:00:02]} 33. b3 {[%emt 0:00:03]} Nf8 {[%emt 0:00:22]} 34. c4 {[%emt 0:00:25]} Ng6 {[%emt 0:00:03]} 35. cxd5 {[%emt 0:00:57]} Kf7 {[%emt 0:00:21]} 36. Bg3 {[%emt 0:00:17]} Ne7 {[%emt 0:00:16]} 37. d6 {[%emt 0:01:34]} Nd5 {[%emt 0:00:02]} 38. Kd3 {[%emt 0:00:04]} Ke6 {[%emt 0:00:11]} 39. Be5 {[%emt 0:00:09]} Nb4+ {[%emt 0:00:22]} 40. Kc4 {[%emt 0:00:03]} Nc2 {[%emt 0:00:03]} 41. d5+ {[%emt 0:02:06]} Kd7 {[%emt 0:00:07]} 42. Bg3 {[%emt 0:00:02]} a5 {[%emt 0:00:43]} 43. Kb5 {[%emt 0:00:20]} Nd4+ {[%emt 0:00:09]} 44. Kxa5 {[%emt 0:00:03]} Nxf3 {[%emt 0:00:08]} 45. Kb6 {[%emt 0:00:02]} Nd4 {[%emt 0:01:24]} 46. Kxb7 {[%emt 0:00:44]} 1-0

[Event "EIRCC 2019"]
[Site "Tallinn"]
[Date "2019.12.06"]
[Round "8.16"]
[White "D`costa, Lorin"]
[Black "Shubin, Kirill"]
[Result "1/2-1/2"]
[ECO "A40"]
[WhiteElo "2407"]
[BlackElo "2321"]
[Annotator "NA"]
[PlyCount "85"]
[EventDate "2019.12.05"]
[EventType "swiss"]
[EventCountry "EST"]
[SourceTitle "playchess.com"]
[Source "ChessBase"]
[SourceQuality "1"]
[TimeControl "900+10"]

1. d4 {[%emt 0:00:00]} e6 {[%emt 0:00:00]} 2. Nf3 {[%emt 0:00:05]} Nf6 {[%emt 0:00:00]} 3. Bf4 {[%emt 0:00:13]} d5 {[%emt 0:00:12]} 4. e3 {[%emt 0:00:01]} c5 {[%emt 0:00:04]} 5. c3 {[%emt 0:00:04]} Bd6 {[%emt 0:00:12]} 6. Bg3 {[%emt 0:00:03]} O-O {[%emt 0:00:02]} 7. Nbd2 {[%emt 0:00:01]} Nc6 {[%emt 0:00:04]} 8. Bb5 {[%emt 0:00:27]} Qe7 {[%emt 0:01:02]} 9. Qa4 {[%emt 0:03:47]} Bd7 {[%emt 0:00:39]} 10. O-O {[%emt 0:00:57]} a6 {[%emt 0:02:29]} 11. Bxc6 {[%emt 0:00:15]} Bxc6 {[%emt 0:00:02]} 12. Qa3 {[%emt 0:00:48]} b6 {[%emt 0:00:25]} 13. Rfe1 {[%emt 0:00:34]} Rfd8 {[%emt 0:00:19]} 14. Bxd6 {[%emt 0:00:35]} Qxd6 {[%emt 0:00:05]} 15. Ne5 {[%emt 0:00:17]} Bb7 {[%emt 0:00:17]} 16. Rad1 {[%emt 0:00:16]} Qc7 {[%emt 0:00:28]} 17. b4 {[%emt 0:00:34]} c4 {[%emt 0:01:19]} 18. Qb2 {[%emt 0:00:20]} Ne8 {[%emt 0:00:16]} 19. e4 {[%emt 0:01:05]} Nd6 {[%emt 0:00:16]} 20. f3 {[%emt 0:00:10]} Re8 {[%emt 0:01:35]} 21. a4 {[%emt 0:00:56]} f6 {[%emt 0:00:40]} 22. Ng4 {[%emt 0:00:01]} dxe4 {[%emt 0:00:16]} 23. Nxe4 {[%emt 0:00:19]} Nf5 {[%emt 0:01:14]} 24. Qc2 {[%emt 0:02:04]} Rf8 {[%emt 0:01:28]} 25. Ra1 {[%emt 0:01:34]} a5 {[%emt 0:00:47]} 26. b5 {[%emt 0:00:02]} Rad8 {[%emt 0:00:18]} 27. Re2 {[%emt 0:00:14]} Bd5 {[%emt 0:00:34]} 28. Rae1 {[%emt 0:00:01]} Ne7 {[%emt 0:00:45]} 29. Ng3 {[%emt 0:00:37]} Ng6 {[%emt 0:00:07]} 30. Nh5 {[%emt 0:00:27]} Kh8 {[%emt 0:00:48]} 31. Ne3 {[%emt 0:00:07]} e5 {[%emt 0:00:07]} 32. Rd1 {[%emt 0:01:12]} Bb7 {[%emt 0:01:13]} 33. Nf5 {[%emt 0:00:28]} Rg8 {[%emt 0:00:27]} 34. Red2 {[%emt 0:00:58]} exd4 {[%emt 0:00:07]} 35. Rxd4 {[%emt 0:00:02]} Qc5 {[%emt 0:00:10]} 36. Kf1 {[%emt 0:00:14]} Rde8 {[%emt 0:00:15]} 37. Nd6 {[%emt 0:00:09]} Re7 {[%emt 0:00:19]} 38. Nf4 {[%emt 0:00:25]} Ne5 {[%emt 0:00:33]} 39. Nf5 {[%emt 0:00:42]} Ree8 {[%emt 0:00:12]} 40. Nd6 {[%emt 0:00:02]} Re7 {[%emt 0:00:02]} 41. Nf5 {[%emt 0:00:01]} Ree8 {[%emt 0:00:10]} 42. Nd6 {[%emt 0:00:11]} Re7 {[%emt 0:00:02]} 43. Nf5 {[%emt 0:00:28]} 1/2-1/2